Workbook

Sheet 体检对象人员名单
A1: 附件
A2: 广东工贸职业技术学院2024年集中公开招聘高校毕业生综合成绩及体检对象人员名单
A3: 序号 | B3: 岗位名称 | C3: 岗位代码 | D3: 姓名 | E3: 面试准考证号 | F3: 性别 | G3: 笔试成绩 | H3: 面试成绩 | I3: 综合成绩 | J3: 综合成绩岗位排名 | K3: 是否进入体检
A4: 1 | B4: 机电工程学院专业技术岗位十一级至十三级 | C4: 2412121990504 | D4: 骆鑫龙 | E4: 20240615004 | F4: 男 | G4: 78.1 | H4: 83.73 | I4: =G4*0.5+H4*0.5 -> 80.92 | J4: 1 | K4: 是
A5: 2 | B5: 机电工程学院专业技术岗位十一级至十三级 | C5: 2412121990504 | D5: 方海涛 | E5: 20240615003 | F5: 男 | G5: 79.3 | H5: 81.12 | I5: =G5*0.5+H5*0.5 -> 80.21 | J5: 2 | K5: 否
A6: 3 | B6: 机电工程学院专业技术岗位十一级至十三级 | C6: 2412121990504 | D6: 尹玄炜 | E6: 20240615005 | F6: 男 | G6: 77.8 | H6: 74.97 | I6: =G6*0.5+H6*0.5 -> 76.39 | J6: 3 | K6: 否
A7: 4 | B7: 机电工程学院专业技术岗位十一级至十三级 | C7: 2412121990504 | D7: 孔可嘉 | E7: 20240615001 | F7: 男 | G7: 86.5 | H7: 缺考 | I7: / | J7: / | K7: 否
A8: 5 | B8: 测绘遥感信息学院专业技术岗位十一级至十三级 | C8: 2412121990505 | D8: 邱献引 | E8: 20240615006 | F8: 女 | G8: 80.9 | H8: 82.47 | I8: =G8*0.5+H8*0.5 -> 81.69 | J8: 1 | K8: 是
A9: 6 | B9: 测绘遥感信息学院专业技术岗位十一级至十三级 | C9: 2412121990505 | D9: 李瑾 | E9: 20240615007 | F9: 女 | G9: 79.8 | H9: 79.00 | I9: 79.40 | J9: 2 | K9: 是
A10: 7 | B10: 测绘遥感信息学院专业技术岗位十一级至十三级 | C10: 2412121990505 | D10: 刘艳霞 | E10: 20240615009 | F10: 女 | G10: 78.5 | H10: 78.04 | I10: 78.27 | J10: 3 | K10: 否
A11: 8 | B11: 测绘遥感信息学院专业技术岗位十一级至十三级 | C11: 2412121990505 | D11: 王文倩 | E11: 20240615011 | F11: 女 | G11: 77.9 | H11: 76.06 | I11: 76.98 | J11: 4 | K11: 否
A12: 9 | B12: 测绘遥感信息学院专业技术岗位十一级至十三级 | C12: 2412121990505 | D12: 梁沅宜 | E12: 20240615013 | F12: 女 | G12: 76.7 | H12: 76.43 | I12: 76.57 | J12: 5 | K12: 否
A13: 10 | B13: 测绘遥感信息学院专业技术岗位十一级至十三级 | C13: 2412121990505 | D13: 袁燕萍 | E13: 20240615012 | F13: 女 | G13: 77.7 | H13: 70.13 | I13: 73.92 | J13: 6 | K13: 否
A14: 11 | B14: 测绘遥感信息学院专业技术岗位十一级至十三级 | C14: 2412121990505 | D14: 闫伟玉 | E14: 20240615010 | F14: 男 | G14: 78.2 | H14: 64.95 | I14: 71.58 | J14: 7 | K14: 否
A15: 12 | B15: 汽车工程学院专业技术岗位十一级至十三级 | C15: 2412121990506 | D15: 宋权民 | E15: 20240615018 | F15: 男 | G15: 79 | H15: 80.24 | I15: 79.62 | J15: 1 | K15: 是
A16: 13 | B16: 汽车工程学院专业技术岗位十一级至十三级 | C16: 2412121990506 | D16: 林晓晴 | E16: 20240615017 | F16: 女 | G16: 79.5 | H16: 78.95 | I16: 79.23 | J16: 2 | K16: 否
A17: 14 | B17: 汽车工程学院专业技术岗位十一级至十三级 | C17: 2412121990506 | D17: 王伟杰 | E17: 20240615016 | F17: 男 | G17: 86.5 | H17: 66.96 | I17: 76.73 | J17: 3 | K17: 否
A18: 15 | B18: 汽车工程学院专业技术岗位十一级至十三级 | C18: 2412121990507 | D18: 梁星 | E18: 20240615024 | F18: 男 | G18: 74.6 | H18: 79.82 | I18: 77.21 | J18: 1 | K18: 是
A19: 16 | B19: 汽车工程学院专业技术岗位十一级至十三级 | C19: 2412121990507 | D19: 刘成前 | E19: 20240615023 | F19: 男 | G19: 76.6 | H19: 77.11 | I19: 76.86 | J19: 2 | K19: 否
A20: 17 | B20: 汽车工程学院专业技术岗位十一级至十三级 | C20: 2412121990507 | D20: 孙春倩 | E20: 20240615025 | F20: 女 | G20: 73 | H20: 80.60 | I20: 76.80 | J20: 3 | K20: 否
A21: 18 | B21: 汽车工程学院专业技术岗位十一级至十三级 | C21: 2412121990507 | D21: 钱创造 | E21: 20240615104 | F21: 男 | G21: 70.9 | H21: 78.62 | I21: 74.76 | J21: 4 | K21: 否
A22: 19 | B22: 汽车工程学院专业技术岗位十一级至十三级 | C22: 2412121990507 | D22: 黄云 | E22: 20240615021 | F22: 男 | G22: 78.1 | H22: 63.95 | I22: 71.03 | J22: 5 | K22: 否
A23: 20 | B23: 计算机与信息工程学院专业技术岗位十一级至十三级 | C23: 2412121990508 | D23: 何俊逸 | E23: 20240615027 | F23: 男 | G23: 75.4 | H23: 78.47 | I23: 76.94 | J23: 1 | K23: 是
A24: 21 | B24: 计算机与信息工程学院专业技术岗位十一级至十三级 | C24: 2412121990508 | D24: 周煜博 | E24: 20240615030 | F24: 男 | G24: 69.9 | H24: 79.13 | I24: 74.52 | J24: 2 | K24: 否
A25: 22 | B25: 计算机与信息工程学院专业技术岗位十一级至十三级 | C25: 2412121990508 | D25: 张安业 | E25: 20240615028 | F25: 男 | G25: 72.4 | H25: 74.53 | I25: 73.47 | J25: 3 | K25: 否
A26: 23 | B26: 计算机与信息工程学院专业技术岗位十一级至十三级 | C26: 2412121990508 | D26: 邓文骏 | E26: 20240615029 | F26: 男 | G26: 70 | H26: 74.98 | I26: 72.49 | J26: 4 | K26: 否
A27: 24 | B27: 计算机与信息工程学院专业技术岗位十一级至十三级 | C27: 2412121990509 | D27: 胡泽宇 | E27: 20240615034 | F27: 男 | G27: 78.3 | H27: 84.23 | I27: 81.27 | J27: 1 | K27: 是
A28: 25 | B28: 计算机与信息工程学院专业技术岗位十一级至十三级 | C28: 2412121990509 | D28: 谈力滔 | E28: 20240615031 | F28: 男 | G28: 81.4 | H28: 80.34 | I28: 80.87 | J28: 2 | K28: 否
A29: 26 | B29: 计算机与信息工程学院专业技术岗位十一级至十三级 | C29: 2412121990509 | D29: 庞伟涛 | E29: 20240615035 | F29: 男 | G29: 77.4 | H29: 83.92 | I29: 80.66 | J29: 3 | K29: 否
A30: 27 | B30: 计算机与信息工程学院专业技术岗位十一级至十三级 | C30: 2412121990509 | D30: 李迎雪 | E30: 20240615032 | F30: 女 | G30: 80.5 | H30: 78.58 | I30: 79.54 | J30: 4 | K30: 否
A31: 28 | B31: 计算机与信息工程学院专业技术岗位十一级至十三级 | C31: 2412121990509 | D31: 龚韬 | E31: 20240615033 | F31: 男 | G31: 79.6 | H31: 75.20 | I31: 77.40 | J31: 5 | K31: 否
A32: 29 | B32: 工商管理学院专业技术岗位十一级至十三级 | C32: 2412121990510 | D32: 李晓晗 | E32: 20240615038 | F32: 女 | G32: 80.9 | H32: 83.81 | I32: 82.36 | J32: 1 | K32: 是
A33: 30 | B33: 工商管理学院专业技术岗位十一级至十三级 | C33: 2412121990510 | D33: 林炽晴 | E33: 20240615041 | F33: 女 | G33: 80 | H33: 82.00 | I33: 81.00 | J33: 2 | K33: 否
A34: 31 | B34: 体育艺术教学部专业技术岗位十一级至十三级 | C34: 2412121990511 | D34: 白娟 | E34: 20240615043 | F34: 女 | G34: 63.9 | H34: 79.78 | I34: 71.84 | J34: 1 | K34: 是
A35: 32 | B35: 经济贸易学院专业技术岗位十一级至十三级 | C35: 2412121990512 | D35: 陈莹思 | E35: 20240615044 | F35: 女 | G35: 80 | H35: 84.34 | I35: 82.17 | J35: 1 | K35: 是
A36: 33 | B36: 经济贸易学院专业技术岗位十一级至十三级 | C36: 2412121990512 | D36: 马凡雅 | E36: 20240615048 | F36: 女 | G36: 77.7 | H36: 85.24 | I36: 81.47 | J36: 2 | K36: 否
A37: 34 | B37: 经济贸易学院专业技术岗位十一级至十三级 | C37: 2412121990512 | D37: 曹钰枫 | E37: 20240615046 | F37: 女 | G37: 79.3 | H37: 83.18 | I37: 81.24 | J37: 3 | K37: 否
A38: 35 | B38: 经济贸易学院专业技术岗位十一级至十三级 | C38: 2412121990512 | D38: 黄靖勉 | E38: 20240615045 | F38: 女 | G38: 79.5 | H38: 76.70 | I38: 78.10 | J38: 4 | K38: 否
A39: 36 | B39: 经济贸易学院专业技术岗位十一级至十三级 | C39: 2412121990512 | D39: 陈宗杰 | E39: 20240615047 | F39: 男 | G39: 78.1 | H39: 缺考 | I39: / | J39: / | K39: 否
A40: 37 | B40: 艺术与教育学院专业技术岗位十一级至十三级 | C40: 2412121990513 | D40: 何姹琅 | E40: 20240615050 | F40: 女 | G40: 77.4 | H40: 80.35 | I40: =G40*0.5+H40*0.5 -> 78.88 | J40: 1 | K40: 是
A41: 38 | B41: 艺术与教育学院专业技术岗位十一级至十三级 | C41: 2412121990513 | D41: 王永心 | E41: 20240615051 | F41: 女 | G41: 73.7 | H41: 75.15 | I41: 74.43 | J41: 2 | K41: 是
A42: 39 | B42: 艺术与教育学院专业技术岗位十一级至十三级 | C42: 2412121990513 | D42: 杨玉科 | E42: 20240615058 | F42: 男 | G42: 67.7 | H42: 80.76 | I42: 74.23 | J42: 3 | K42: 否
A43: 40 | B43: 艺术与教育学院专业技术岗位十一级至十三级 | C43: 2412121990513 | D43: 谢宇 | E43: 20240615052 | F43: 女 | G43: 72.9 | H43: 74.95 | I43: 73.93 | J43: 4 | K43: 否
A44: 41 | B44: 艺术与教育学院专业技术岗位十一级至十三级 | C44: 2412121990513 | D44: 吕兵学 | E44: 20240615053 | F44: 男 | G44: 72 | H44: 74.00 | I44: 73.00 | J44: 5 | K44: 否
A45: 42 | B45: 艺术与教育学院专业技术岗位十一级至十三级 | C45: 2412121990513 | D45: 莫祎昀 | E45: 20240615056 | F45: 女 | G45: 68.1 | H45: 75.33 | I45: 71.72 | J45: 6 | K45: 否
A46: 43 | B46: 艺术与教育学院专业技术岗位十一级至十三级 | C46: 2412121990513 | D46: 乐韵 | E46: 20240615057 | F46: 女 | G46: 67.9 | H46: 73.04 | I46: 70.47 | J46: 7 | K46: 否
A47: 44 | B47: 艺术与教育学院专业技术岗位十一级至十三级 | C47: 2412121990513 | D47: 周一枝 | E47: 20240615055 | F47: 女 | G47: 68.5 | H47: 59.87 | I47: 64.19 | J47: 8 | K47: 否
A48: 45 | B48: 艺术与教育学院专业技术岗位十一级至十三级 | C48: 2412121990513 | D48: 毛业凯 | E48: 20240615049 | F48: 男 | G48: 79.9 | H48: 缺考 | I48: / | J48: / | K48: 否
A49: 46 | B49: 艺术与教育学院专业技术岗位十一级至十三级 | C49: 2412121990513 | D49: 刘其鹏 | E49: 20240615054 | F49: 男 | G49: 71.3 | H49: 缺考 | I49: / | J49: / | K49: 否
A50: 47 | B50: 艺术与教育学院专业技术岗位十一级至十三级 | C50: 2412121990514 | D50: 郑灿锋 | E50: 20240615060 | F50: 男 | G50: 70.9 | H50: 75.51 | I50: =G50*0.5+H50*0.5 -> 73.21 | J50: 1 | K50: 是
A51: 48 | B51: 艺术与教育学院专业技术岗位十一级至十三级 | C51: 2412121990514 | D51: 林润英 | E51: 20240615063 | F51: 女 | G51: 64.3 | H51: 74.02 | I51: =G51*0.5+H51*0.5 -> 69.16 | J51: 2 | K51: 否
A52: 49 | B52: 艺术与教育学院专业技术岗位十一级至十三级 | C52: 2412121990514 | D52: 张向海 | E52: 20240615107 | F52: 男 | G52: 64 | H52: 0.00 | I52: =G52*0.5+H52*0.5 -> 32.00 | J52: 3 | K52: 否
A53: 50 | B53: 艺术与教育学院专业技术岗位十一级至十三级 | C53: 2412121990514 | D53: 张子晴 | E53: 20240615059 | F53: 女 | G53: 80.6 | H53: 缺考 | I53: / | J53: / | K53: 否
A54: 51 | B54: 党委办公室管理岗位九级以上 | C54: 2412121990515 | D54: 刘佳 | E54: 20240615065 | F54: 女 | G54: 80.5 | H54: 83.50 | I54: =G54*0.5+H54*0.5 -> 82.00 | J54: 1 | K54: 是
A55: 52 | B55: 党委办公室管理岗位九级以上 | C55: 2412121990515 | D55: 肖露 | E55: 20240615064 | F55: 女 | G55: 85 | H55: 缺考 | I55: / | J55: / | K55: 否
A56: 53 | B56: 党委办公室管理岗位九级以上 | C56: 2412121990515 | D56: 陈润杰 | E56: 20240615066 | F56: 男 | G56: 79.9 | H56: 缺考 | I56: / | J56: / | K56: 否
A57: 54 | B57: 党委办公室管理岗位九级以上 | C57: 2412121990516 | D57: 陈茂华 | E57: 20240615070 | F57: 男 | G57: 71.4 | H57: 83.50 | I57: =G57*0.5+H57*0.5 -> 77.45 | J57: 1 | K57: 是
A58: 55 | B58: 党委办公室管理岗位九级以上 | C58: 2412121990516 | D58: 李平 | E58: 20240615073 | F58: 男 | G58: 69.9 | H58: 79.60 | I58: =G58*0.5+H58*0.5 -> 74.75 | J58: 2 | K58: 否
A59: 56 | B59: 党委办公室管理岗位九级以上 | C59: 2412121990516 | D59: 李忠琳 | E59: 20240615072 | F59: 女 | G59: 69.9 | H59: 66.90 | I59: =G59*0.5+H59*0.5 -> 68.40 | J59: 3 | K59: 否
A60: 57 | B60: 党委办公室管理岗位九级以上 | C60: 2412121990516 | D60: 李倩 | E60: 20240615108 | F60: 女 | G60: 68.9 | H60: 缺考 | I60: / | J60: / | K60: 否
A61: 58 | B61: 组织宣传统战部专业技术岗位十一级至十三级 | C61: 2412121990517 | D61: 赵婵娟 | E61: 20240615109 | F61: 女 | G61: 70.2 | H61: 82.45 | I61: =G61*0.5+H61*0.5 -> 76.33 | J61: 1 | K61: 是
A62: 59 | B62: 组织宣传统战部专业技术岗位十一级至十三级 | C62: 2412121990517 | D62: 黄炫旋 | E62: 20240615077 | F62: 女 | G62: 71.1 | H62: 79.30 | I62: =G62*0.5+H62*0.5 -> 75.20 | J62: 2 | K62: 否
A63: 60 | B63: 组织宣传统战部专业技术岗位十一级至十三级 | C63: 2412121990517 | D63: 黄颖欣 | E63: 20240615074 | F63: 女 | G63: 72.4 | H63: 缺考 | I63: / | J63: / | K63: 否
A64: 61 | B64: 校长办公室专业技术岗位十一级至十三级 | C64: 2412121990518 | D64: 钟心怡 | E64: 20240615079 | F64: 女 | G64: 82.9 | H64: 86.90 | I64: =G64*0.5+H64*0.5 -> 84.90 | J64: 1 | K64: 是
A65: 62 | B65: 校长办公室专业技术岗位十一级至十三级 | C65: 2412121990518 | D65: 郭艳 | E65: 20240615080 | F65: 女 | G65: 81.6 | H65: 83.60 | I65: 82.60 | J65: 2 | K65: 否
A66: 63 | B66: 校长办公室专业技术岗位十一级至十三级 | C66: 2412121990518 | D66: 苏万营 | E66: 20240615081 | F66: 女 | G66: 77.5 | H66: 83.65 | I66: 80.58 | J66: 3 | K66: 否
A67: 64 | B67: 人力资源部专业技术岗位十一级至十三级 | C67: 2412121990519 | D67: 全晋 | E67: 20240615084 | F67: 男 | G67: 83.6 | H67: 83.30 | I67: 83.45 | J67: 1 | K67: 是
A68: 65 | B68: 人力资源部专业技术岗位十一级至十三级 | C68: 2412121990519 | D68: 王宁 | E68: 20240615088 | F68: 女 | G68: 81.7 | H68: 81.25 | I68: 81.48 | J68: 2 | K68: 否
A69: 66 | B69: 人力资源部专业技术岗位十一级至十三级 | C69: 2412121990519 | D69: 吕立超 | E69: 20240615085 | F69: 男 | G69: 82.4 | H69: 79.75 | I69: 81.08 | J69: 3 | K69: 否
A70: 67 | B70: 人力资源部专业技术岗位十一级至十三级 | C70: 2412121990519 | D70: 凌诗梦 | E70: 20240615086 | F70: 女 | G70: 82.3 | H70: 73.10 | I70: 77.70 | J70: 4 | K70: 否
A71: 68 | B71: 人力资源部专业技术岗位十一级至十三级 | C71: 2412121990520 | D71: 唐泓懿 | E71: 20240615091 | F71: 女 | G71: 83.1 | H71: 84.55 | I71: 83.83 | J71: 1 | K71: 是
A72: 69 | B72: 人力资源部专业技术岗位十一级至十三级 | C72: 2412121990520 | D72: 李庆庭 | E72: 20240615089 | F72: 男 | G72: 85.1 | H72: 79.85 | I72: 82.48 | J72: 2 | K72: 否
A73: 70 | B73: 人力资源部专业技术岗位十一级至十三级 | C73: 2412121990520 | D73: 肖明岳 | E73: 20240615093 | F73: 男 | G73: 83 | H73: 76.45 | I73: 79.73 | J73: 3 | K73: 否
A74: 71 | B74: 人力资源部专业技术岗位十一级至十三级 | C74: 2412121990520 | D74: 吴林琳 | E74: 20240615092 | F74: 女 | G74: 83 | H74: 76.30 | I74: 79.65 | J74: 4 | K74: 否
A75: 72 | B75: 财务部专业技术岗位十一级至十三级 | C75: 2412121990521 | D75: 李婵 | E75: 20240615095 | F75: 女 | G75: 82.3 | H75: 80.55 | I75: 81.43 | J75: 1 | K75: 是
A76: 73 | B76: 财务部专业技术岗位十一级至十三级 | C76: 2412121990521 | D76: 张梓浩 | E76: 20240615096 | F76: 男 | G76: 82.3 | H76: 79.30 | I76: 80.80 | J76: 2 | K76: 否
A77: 74 | B77: 财务部专业技术岗位十一级至十三级 | C77: 2412121990521 | D77: 郑卉 | E77: 20240615097 | F77: 女 | G77: 81.7 | H77: 缺考 | I77: / | J77: / | K77: 否
A78: 75 | B78: 财务部专业技术岗位十一级至十三级 | C78: 2412121990521 | D78: 万广广 | E78: 20240615098 | F78: 男 | G78: 79.8 | H78: 缺考 | I78: / | J78: / | K78: 否
A79: 76 | B79: 信息中心专业技术岗位十一级至十三级 | C79: 2412121990522 | D79: 高梦真 | E79: 20240615099 | F79: 女 | G79: 77.2 | H79: 78.95 | I79: =G79*0.5+H79*0.5 -> 78.08 | J79: 1 | K79: 是
A80: 77 | B80: 信息中心专业技术岗位十一级至十三级 | C80: 2412121990522 | D80: 黄羽雯 | E80: 20240615100 | F80: 女 | G80: 76.1 | H80: 73.50 | I80: =G80*0.5+H80*0.5 -> 74.80 | J80: 2 | K80: 否
A81: 78 | B81: 信息中心专业技术岗位十一级至十三级 | C81: 2412121990522 | D81: 关嘉琦 | E81: 20240615101 | F81: 女 | G81: 72.8 | H81: 71.70 | I81: =G81*0.5+H81*0.5 -> 72.25 | J81: 3 | K81: 否
A82: 79 | B82: 信息中心专业技术岗位十一级至十三级 | C82: 2412121990522 | D82: 徐也 | E82: 20240615102 | F82: 女 | G82: 71.2 | H82: 缺考 | I82: / | J82: / | K82: 否
